bitfinex/quotes_ETHUSD_20250914
["timestamp","ask_amount","ask_price","bid_price","bid_amount"]
[1757809348272,5.221,4669.6,4669.5,0.699]
[1757809348473,5.221,4669.6,4669.5,0.8034]
[1757809348877,5.221,4669.6,4669.5,0.699]
[1757809349408,5.221,4669.6,4669.5,0.8044]
[1757809351332,1.643,4669.6,4669.5,0.8044]
[1757809351544,5.221,4669.6,4669.5,0.8044]
[1757809352125,5.221,4669.6,4669.5,0.7]
[1757809353106,1.643,4669.6,4669.5,0.8044]
[1757809353413,5.22,4669.6,4669.5,1.44707421]
[1757809355522,1.643,4669.6,4669.5,3.94965386]
[1757809355724,0.4611,4671.4,4669.5,1.80809695]
[1757809355725,0.1064,4669.9,4669.5,1.80809695]
[1757809355923,3.577,4670.0,4669.8,0.1064]
[1757809356124,1.643,4670.4,4669.9,2.74337347]
[1757809356324,3.577,4670.3,4670.0,2.74332479]
[1757809356526,3.577,4670.3,4670.2,0.167]
[1757809356850,3.577,4670.3,4670.2,0.6646]
[1757809357142,1.643,4670.4,4670.2,0.6646]
[1757809357337,3.577,4670.3,4670.2,0.6646]
[1757809357541,3.577,4670.3,4670.2,0.167]
[1757809357709,3.577,4670.3,4670.2,2.95074909]
[1757809358035,3.577,4670.3,4670.2,3.05514909]
[1757809358246,3.577,4670.3,4670.2,3.55274909]
[1757809358408,3.577,4670.3,4670.2,3.44834909]
[1757809359041,3.577,4670.3,4670.2,1.30711317]
[1757809361022,3.576,4670.3,4670.2,1.30711317]
[1757809361348,3.576,4670.3,4670.2,3.55274909]
[1757809361519,3.576,4670.3,4670.2,1.30711317]
[1757809362621,3.575,4670.3,4670.2,1.30711317]
[1757809363348,4.3163,4670.3,4670.2,0.64251317]
[1757809363552,3.6814,4670.3,4670.2,0.64251317]
[1757809363853,3.6814,4670.3,4670.2,1.30711317]
[1757809364217,3.6814,4670.3,4670.2,1.32852552]
[1757809364418,0.1064,4670.3,4670.2,3.46976144]
[1757809364641,1.643,4670.4,4670.3,2.14119007]
[1757809364840,5.217,4670.4,4670.3,2.80579007]
[1757809367231,0.1064,4670.7,4670.4,2.14114336]
[1757809367530,3.575,4670.6,4670.4,2.61824336]
[1757809367730,0.1064,4670.7,4670.5,0.6441]
[1757809368055,3.574,4670.6,4670.5,2.78519262]
[1757809369762,1.643,4671.1,4670.5,1.2228527]
[1757809370050,3.6804,4671.0,4670.6,0.4771]
[1757809370223,0.4685,4670.9,4670.6,0.4771]
[1757809371134,0.4685,4670.9,4670.7,0.4543]
[1757809371329,3.6804,4671.0,4670.7,0.4543]
[1757809371638,4.1426,4671.0,4670.7,0.4543]
[1757809372247,3.574,4670.9,4670.8,0.4543]
[1757809372455,0.1064,4671.0,4670.8,2.16237046]
[1757809372652,2.1052,4672.0,4670.9,0.2714]
[1757809372839,3.574,4671.9,4671.5,2.14062639]
[1757809373038,3.574,4671.9,4671.6,0.47570594]
[1757809373242,2.1052,4672.0,4671.6,0.47570594]
[1757809373449,3.574,4671.9,4671.8,2.30750259]
[1757809373759,3.574,4671.9,4671.8,2.78320761]
[1757809373963,1.643,4672.0,4671.9,2.14045677]
[1757809374128,5.217,4672.0,4671.9,2.59475677]
[1757809374330,5.217,4672.0,4671.9,0.6213]
[1757809374966,5.217,4672.0,4671.9,0.4543]
[1757809375835,5.217,4672.0,4671.8,2.14047792]
[1757809376159,5.6792,4672.0,4671.8,2.14047792]
[1757809376470,5.217,4672.0,4671.6,0.4543]
[1757809376778,0.291,4671.9,4671.0,0.64229583]
[1757809377067,0.4622,4671.8,4671.3,2.1407313]
[1757809377291,4.0372,4671.7,4671.3,2.1407313]
[1757809377575,0.4622,4671.6,4671.4,2.14068498]
[1757809378142,0.291,4671.5,4671.2,5.14074369]
[1757809378348,0.291,4671.5,4671.3,2.14072873]
[1757809378647,3.575,4671.7,4671.3,2.1407317]
[1757809378834,3.575,4671.7,4671.6,2.14059422]
[1757809379764,3.575,4671.7,4671.6,2.76189422]
[1757809380471,3.573,4671.7,4671.6,2.7618889]
[1757809380686,3.573,4671.7,4671.6,0.6213]
[1757809380885,3.573,4671.7,4671.6,2.76189422]
[1757809381187,3.573,4671.7,4671.6,2.78330016]
[1757809382172,3.573,4671.7,4671.6,2.76189422]
[1757809383601,3.573,4671.7,4671.6,2.59489422]
[1757809384396,3.573,4671.7,4671.6,2.76189422]
[1757809385284,3.573,4671.7,4671.6,2.59489422]
[1757809385679,1.645,4672.0,4671.7,2.1405484]
[1757809385890,0.002,4672.0,4671.9,2.30745677]
[1757809386097,0.002,4672.0,4671.9,2.76175677]
[1757809387594,0.293,4672.0,4671.9,2.14045677]
[1757809387794,0.7552,4672.0,4671.9,2.14045677]
[1757809389388,0.7552,4672.0,4671.7,2.14051015]
[1757809389614,0.7552,4672.0,4671.8,2.14049755]
[1757809390110,0.293,4672.0,4671.8,2.14049755]
[1757809390289,0.4622,4671.9,4671.8,2.14049755]
[1757809392018,0.002,4672.0,4671.9,2.14045677]
[1757809392524,0.002,4672.0,4671.9,2.76175677]
[1757809392688,3.571,4672.0,4671.9,0.4543]
[1757809392887,3.571,4672.0,4671.8,2.14049724]
[1757809393092,0.4642,4672.0,4671.8,2.14049724]
[1757809393293,4.0332,4672.0,4671.9,2.14045677]
[1757809393718,4.0332,4672.0,4671.6,0.5607]
[1757809393906,4.0332,4672.0,4671.7,0.4543]
[1757809394110,4.0332,4672.0,4671.8,2.14049519]
[1757809394295,4.0332,4672.0,4671.8,2.59479519]
[1757809394497,4.0332,4672.0,4671.9,2.14045677]
[1757809394696,4.0332,4672.0,4671.8,0.4543]
[1757809395634,4.0332,4672.0,4671.9,2.14045677]
[1757809395941,4.0332,4672.0,4671.8,2.59479806]
[1757809398634,4.0332,4672.0,4671.8,0.4543]
[1757809398938,4.0332,4672.0,4671.8,2.1404813]
[1757809399135,4.0332,4672.0,4671.8,2.14049332]
[1757809399826,4.0332,4672.0,4671.9,2.14045677]
[1757809400023,3.571,4672.0,4671.9,2.14045677]
[1757809400611,4.0392,4672.0,4671.9,2.14045677]
[1757809400813,4.0372,4672.0,4671.9,2.14045677]
[1757809401646,4.3397,4672.0,4671.8,2.14049273]
[1757809401833,0.4682,4671.9,4671.8,2.14049273]
[1757809403015,4.0342,4671.9,4671.8,2.14049273]
[1757809403427,4.0342,4671.9,4671.6,0.5823]
[1757809403632,0.4682,4671.8,4671.6,0.1064]
[1757809404062,0.4682,4671.8,4671.7,2.1405484]
[1757809404267,0.7707,4671.8,4671.7,2.1405484]
[1757809404861,0.7707,4671.8,4671.6,2.2469865]
[1757809405033,0.4682,4671.7,4671.6,2.2469865]
[1757809405233,0.7707,4671.7,4671.6,2.2469865]
[1757809407032,0.4682,4671.7,4671.6,2.2469865]
[1757809409632,3.566,4671.9,4671.8,2.14050259]
[1757809409834,3.566,4671.9,4671.8,2.61640259]
[1757809410984,0.002,4672.0,4671.9,2.14045677]
[1757809411135,0.002,4672.0,4671.9,2.61635677]
[1757809411340,0.002,4672.0,4671.9,2.88975677]
[1757809412048,0.002,4672.0,4671.9,5.88975677]
[1757809413263,0.002,4672.0,4671.9,9.45375677]
[1757809413470,0.002,4672.0,4671.9,10.76647614]
[1757809416139,0.002,4672.0,4671.9,11.40867159]
[1757809418391,0.002,4672.0,4671.9,10.76647614]
[1757809418685,0.002,4672.0,4671.9,10.12357614]
[1757809419060,0.3045,4672.0,4671.9,6.55957614]
[1757809419261,0.7727,4672.0,4671.9,10.12157614]
[1757809419461,0.4702,4672.0,4671.9,10.12157614]
[1757809420854,0.7727,4672.0,4671.9,10.61957614]
[1757809421060,0.7727,4672.0,4671.9,7.05757614]
[1757809423096,0.7727,4672.0,4671.9,5.14045677]
[1757809423397,0.002,4672.0,4671.9,5.78335677]
[1757809424697,0.002,4672.0,4671.9,6.25155677]
[1757809425072,0.002,4672.0,4671.9,6.08455677]
[1757809425273,0.002,4672.0,4671.9,9.64955677]
[1757809425474,0.7727,4672.0,4671.9,9.17365677]
[1757809427228,0.7727,4672.0,4671.9,5.60865677]
[1757809427614,1.2474,4672.0,4671.9,5.60865677]
[1757809427796,0.7727,4672.0,4671.9,5.60865677]
[1757809435838,0.002,4672.0,4671.9,11.30431162]
[1757809437337,0.002,4672.0,4671.9,11.40871162]
[1757809438235,0.002,4672.0,4671.9,11.30431162]
[1757809438436,0.002,4672.0,4671.9,11.40871162]
[1757809440039,0.002,4672.0,4671.9,11.30431162]
[1757809445823,0.002,4672.0,4671.9,11.41071162]
[1757809452852,0.002,4672.5,4672.4,5.93222772]
[1757809453153,0.002,4672.5,4672.4,9.49222772]
[1757809453326,0.002,4672.5,4672.4,9.76562772]
[1757809453517,0.002,4672.5,4672.4,10.32853563]
[1757809454488,0.002,4673.0,4672.4,10.32853563]
[1757809454489,0.002,4673.0,4672.9,2.93199871]
[1757809454634,0.002,4673.0,4672.9,11.65155052]
[1757809454955,0.002,4673.0,4672.9,12.38085054]
[1757809455766,0.002,4673.0,4672.9,12.85125054]
[1757809459362,0.002,4673.0,4672.9,12.68425054]
[1757809459560,0.002,4673.0,4672.9,12.20695054]
[1757809459760,0.4615,4673.0,4672.9,12.20695054]
[1757809460344,0.002,4673.0,4672.9,12.20695054]
[1757809461635,0.4615,4673.0,4672.9,12.20695054]
[1757809463576,0.002,4673.0,4672.9,12.68525054]
[1757809463776,0.002,4673.0,4672.9,12.85225054]
[1757809465081,1e-08,4673.2,4673.1,2.13990712]
[1757809465234,1e-08,4673.2,4673.1,40.85745802]
[1757809465438,1e-08,4673.2,4673.1,41.48135895]
[1757809465838,1e-08,4673.2,4673.1,41.95695895]
[1757809466261,1e-08,4673.2,4673.1,42.74895895]
[1757809467150,0.4595,4673.9,4673.4,0.792]
[1757809467353,0.4595,4673.9,4673.6,5.93167819]
[1757809467559,0.4595,4673.9,4673.8,0.8984]
[1757809468369,0.4595,4673.9,4673.8,3.03798663]
[1757809468540,0.002,4674.2,4674.1,0.792]
[1757809468748,0.002,4674.2,4674.1,7.47679449]
[1757809468964,0.3124,4674.2,4674.1,8.81242353]
[1757809469157,0.002,4674.2,4674.1,9.29002353]
[1757809469344,0.002,4674.2,4674.1,11.42947283]
[1757809469586,0.4615,4674.2,4674.1,11.42947283]
[1757809470090,0.002,4674.2,4674.1,11.42947283]
[1757809471181,0.4615,4674.2,4674.1,11.42947283]
[1757809474053,0.002,4674.2,4674.1,11.42947283]
[1757809474880,0.4615,4674.2,4674.1,11.42947283]
[1757809476680,0.002,4674.2,4674.1,11.42947283]
[1757809477394,0.002,4674.2,4674.1,12.07082544]
[1757809479090,0.7719,4674.2,4674.1,11.42552544]
[1757809480469,0.7719,4674.2,4674.1,5.7234493]
[1757809480470,1.2475,4674.2,4674.1,5.7234493]
[1757809480698,1.2475,4674.2,4674.1,9.2794493]
[1757809481104,1.2475,4674.2,4674.1,5.7234493]
[1757809485316,0.7719,4674.2,4674.1,5.7234493]
[1757809487224,0.002,4674.2,4674.1,7.82434615]
[1757809487423,0.002,4674.2,4674.1,8.29404615]
[1757809489417,0.002,4674.2,4674.1,9.93504615]
[1757809491045,0.002,4674.2,4674.1,39.93504615]
[1757809491238,0.00048953,4674.2,4674.1,39.93504615]
[1757809493045,0.00048953,4674.2,4674.1,9.93504615]
[1757809493248,0.00048953,4674.2,4674.1,39.93504615]
[1757809500470,0.43618953,4674.2,4674.1,39.29834615]
[1757809501132,0.10717437,4674.2,4674.1,39.29834615]
[1757809501556,0.002,4674.7,4674.6,2.93122046]
[1757809501762,0.002,4674.7,4674.6,10.40067157]
[1757809501962,0.7965,4674.7,4674.6,10.40067157]
[1757809502744,0.7965,4674.7,4674.6,11.00710097]
[1757809503169,1.2322,4674.7,4674.6,11.00710097]
[1757809504159,0.7335,4674.7,4674.6,11.00710097]
[1757809505067,0.2978,4674.7,4674.6,11.00710097]
[1757809505268,0.7335,4674.7,4674.6,11.00710097]
[1757809507535,1.2322,4674.7,4674.6,7.34337157]
[1757809507753,1.2322,4674.7,4674.6,10.09232046]
[1757809511844,0.7335,4674.7,4674.6,10.09232046]
[1757809516171,1.2088,4674.7,4674.6,10.09232046]
[1757809516868,0.7335,4674.7,4674.6,10.09232046]
[1757809517265,0.2978,4674.7,4674.6,10.09232046]
[1757809517472,0.2978,4674.7,4674.6,11.31548157]
[1757809517473,0.002,4674.7,4674.6,11.31548157]
[1757809517981,0.002,4674.7,4674.6,12.08448157]
[1757809521907,0.002,4674.7,4674.6,41.97808157]
[1757809522109,0.002,4674.7,4674.6,42.51738157]
[1757809522778,0.002,4674.7,4674.6,42.08448157]
[1757809529117,0.002,4674.7,4674.6,12.08448157]
[1757809529277,0.002,4674.7,4674.6,42.08448157]
[1757809534218,0.002,4674.7,4674.6,12.08448157]
[1757809534513,0.002,4674.7,4674.6,42.08448157]
[1757809535540,0.002,4674.7,4674.6,41.31548157]
[1757809535738,0.3166,4674.7,4674.6,11.31548157]
[1757809535941,0.7646,4674.7,4674.6,11.31548157]
[1757809541133,0.7646,4674.7,4674.6,11.31348157]
[1757809542249,0.7646,4674.7,4674.6,12.95448157]
[1757809546960,0.002,4674.7,4674.6,12.95448157]
[1757809547663,0.002,4674.7,4674.6,13.72178157]
[1757809553947,0.002,4674.7,4674.6,12.95448157]
[1757809554153,0.7676,4674.7,4674.6,12.95448157]
[1757809554969,0.002,4674.7,4674.6,12.95448157]
[1757809555959,0.4516,4674.7,4674.6,12.95448157]
[1757809556472,0.7676,4674.7,4674.6,12.95448157]
[1757809559475,1.2524,4674.7,4674.6,7.38532046]
[1757809559675,1.2524,4674.7,4674.6,10.93932046]
[1757809559882,1.2524,4674.7,4674.6,11.73132046]
[1757809561383,1.2524,4674.7,4674.6,2.74432046]
[1757809561545,1.2524,4674.7,4674.6,5.74432046]
[1757809567183,0.7676,4674.7,4674.6,5.74432046]
[1757809569486,0.002,4674.7,4674.6,11.99928195]
[1757809569787,0.002,4674.7,4674.6,12.43218195]
[1757809571459,0.002,4674.7,4674.6,11.99928195]
[1757809572166,1e-08,4674.8,4674.7,3.792]
[1757809572367,0.002,4675.5,4675.0,3.792]
[1757809572562,0.002,4675.5,4674.9,2.13908318]
[1757809572563,0.002,4675.5,4675.1,41.96073341]
[1757809572759,0.002,4675.5,4675.1,12.0457435]
[1757809573091,0.002,4675.5,4675.1,13.01420216]
[1757809573665,0.002,4675.5,4675.1,43.01420216]
[1757809576282,0.002,4675.5,4675.1,42.58130216]
[1757809577660,0.4705,4675.5,4675.1,42.13130216]
[1757809578475,0.3154,4675.2,4675.1,41.81510216]
[1757809579188,0.7839,4675.2,4675.1,11.81510216]
[1757809580362,1.2471,4675.2,4675.1,9.67595033]
[1757809580793,0.7839,4675.2,4675.1,9.67595033]
[1757809582206,0.7839,4675.2,4675.1,6.12295033]
[1757809582367,1.2471,4675.2,4675.1,9.67595033]
[1757809583802,1.2471,4675.2,4675.1,6.12295033]
[1757809584005,1.2471,4675.2,4675.1,9.67595033]
[1757809585386,0.7839,4675.2,4675.1,9.67595033]
[1757809589705,0.7839,4675.2,4675.1,6.12295033]
[1757809590007,0.7839,4675.2,4675.1,9.67595033]
[1757809591281,0.002,4675.2,4675.1,9.67595033]
[1757809595381,0.4705,4675.2,4675.1,9.67595033]
[1757809595803,0.7839,4675.2,4675.1,9.67595033]
[1757809599691,0.002,4675.2,4675.1,9.67595033]
[1757809601117,0.7839,4675.2,4675.1,9.67595033]
[1757809601818,0.002,4675.2,4675.1,10.44045033]
[1757809602017,0.002,4675.2,4675.1,11.86260368]
[1757809604920,0.002,4675.2,4675.1,11.09810368]
[1757809606116,0.3154,4675.2,4675.1,7.54510368]
[1757809606318,0.7517,4675.2,4675.1,11.09710368]
[1757809607219,0.7517,4675.2,4675.1,0.19195866]
[1757809607419,0.7517,4675.2,4675.0,0.001]
[1757809607420,1.2374,4675.2,4675.0,0.001]
[1757809607625,0.0213823,4675.1,4675.0,0.001]
[1757809607987,2.13903928,4675.0,4674.5,0.001]
[1757809608191,2.13913888,4674.8,4674.5,0.001]
[1757809608392,0.2954,4674.6,4674.5,0.001]
[1757809608793,1.2174,4674.6,4674.5,0.001]
[1757809609193,3.35662046,4674.6,4674.5,0.001]
[1757809609395,3.37800276,4674.6,4674.5,0.001]
[1757809609621,3.9635149,4674.6,4674.5,0.001]
[1757809611106,1.82429444,4674.6,4674.5,0.001]
[1757809611306,1.2387823,4674.6,4674.5,0.001]
[1757809613723,3.37800276,4674.6,4674.5,0.001]
[1757809613919,1.2387823,4674.6,4674.5,0.001]
[1757809617630,0.3167823,4674.6,4674.5,0.001]
[1757809617830,4.7710823,4674.6,4674.5,0.001]
[1757809618041,5.63862324,4674.6,4674.5,0.001]
[1757809618933,7.7778437,4674.6,4674.5,0.001]
[1757809619646,5.63862324,4674.6,4674.5,0.001]
[1757809620861,1.63282324,4674.6,4674.5,0.001]
[1757809621077,4.3172823,4674.6,4674.5,0.001]
[1757809622266,4.7710823,4674.6,4674.5,0.001]
[1757809622562,4.4023,4674.6,4674.5,0.001]
[1757809622764,0.1064,4674.6,4674.5,2.14026623]
[1757809622961,0.1064,4674.6,4674.5,2.95316623]
[1757809622962,3.6584,4674.6,4674.5,2.95316623]
[1757809623139,0.1084,4675.2,4674.8,2.13910669]
[1757809623340,3.6604,4675.2,4674.8,2.13910669]
[1757809623663,3.6604,4675.2,4675.1,0.3155]
[1757809623664,0.002,4675.2,4675.1,0.3155]
[1757809624370,0.002,4675.2,4675.1,2.45449167]
[1757809625366,0.002,4675.2,4675.1,2.95189167]
[1757809625534,0.002,4675.2,4675.1,3.07968158]
[1757809625734,0.002,4675.2,4675.1,3.72145802]
[1757809626236,0.002,4675.2,4675.1,3.70006811]
[1757809626431,0.7619,4675.2,4675.1,0.74817644]
[1757809626733,0.7619,4675.2,4675.1,0.64177644]
[1757809626934,2.13899167,4675.1,4675.0,0.001]
[1757809627199,3.06726949,4675.1,4675.0,0.001]
[1757809627474,4.28096949,4675.1,4675.0,0.001]
[1757809628865,4.25958719,4675.1,4675.0,0.001]
[1757809629062,4.28096949,4675.1,4675.0,0.001]
[1757809629231,5.56496949,4675.1,4675.0,0.001]
[1757809629431,5.54358719,4675.1,4675.0,0.001]
[1757809629637,8.66324573,4675.1,4675.0,0.001]
[1757809630268,8.74886024,4675.1,4675.0,0.001]
[1757809630838,12.30086024,4675.1,4675.0,0.001]
[1757809632950,8.74886024,4675.1,4675.0,0.001]
[1757809633150,12.30086024,4675.1,4675.0,0.001]
[1757809633765,12.1812017,4675.1,4675.0,0.001]
[1757809633965,12.30087885,4675.1,4675.0,0.001]
[1757809636375,15.06676175,4675.1,4675.0,0.001]
[1757809636578,22.08676175,4675.1,4675.0,0.001]
[1757809636875,22.74645533,4675.1,4675.0,0.001]
[1757809637277,22.28642609,4675.1,4675.0,0.001]
[1757809637483,22.74667386,4675.1,4675.0,0.001]
[1757809641590,22.74678302,4675.1,4675.0,0.001]
[1757809643165,22.74878302,4675.1,4675.0,0.001]
[1757809645276,22.28853525,4675.1,4675.0,0.001]
[1757809649580,22.20292074,4675.1,4675.0,0.001]
[1757809651672,22.0032564,4675.1,4675.0,0.001]
[1757809652774,18.0246735,4675.1,4675.0,0.805]
[1757809652973,18.02460734,4675.1,4675.0,0.805]
[1757809657196,13.18760734,4675.1,4675.0,0.805]
[1757809657399,12.83371182,4675.1,4675.0,1.2389]
[1757809658399,9.28071182,4675.1,4675.0,1.2389]
[1757809658591,12.83371182,4675.1,4675.0,1.2389]
[1757809660212,12.83371182,4675.1,4675.0,0.805]
[1757809662633,9.28071182,4675.1,4675.0,0.805]
[1757809662801,12.83371182,4675.1,4675.0,0.805]
[1757809664230,12.83399151,4675.1,4675.0,0.805]
[1757809666117,12.83399151,4675.1,4675.0,0.001]
[1757809666118,13.13339151,4675.1,4675.0,0.001]
[1757809666442,14.06079151,4675.1,4675.0,0.001]
[1757809667209,13.59709151,4675.1,4675.0,0.001]
[1757809668048,12.83396524,4675.1,4675.0,0.001]
[1757809668448,9.28096524,4675.1,4675.0,0.3105]
[1757809668654,9.28096524,4675.1,4675.0,0.7996]
[1757809668813,12.71299167,4675.1,4675.0,0.7996]
[1757809669350,7.022,4675.1,4675.0,0.7996]
[1757809669531,3.554,4675.1,4675.0,1.2335]
[1757809669841,3.5753823,4675.1,4675.0,1.2335]
[1757809671832,0.002,4675.1,4675.0,1.57076742]
[1757809672141,3.6604,4675.1,4675.0,1.2335]
[1757809674736,0.1084,4675.1,4675.0,1.2335]
[1757809674945,3.6604,4675.1,4675.0,1.2335]
[1757809675853,3.6604,4675.1,4675.0,0.7996]
[1757809677038,6.53959167,4675.1,4675.0,0.001]
[1757809678356,6.10649167,4675.1,4675.0,0.001]
[1757809680932,3.6604,4675.1,4675.0,0.001]
[1757809681146,3.6817823,4675.1,4675.0,0.001]
[1757809682155,3.6817823,4675.1,4675.0,0.294]
[1757809682361,5.82077397,4675.1,4675.0,0.7613]
[1757809682560,3.6604,4675.1,4675.0,0.7613]
[1757809682875,3.6817823,4675.1,4675.0,0.7613]
[1757809683236,5.82077397,4675.1,4675.0,0.7613]
[1757809683587,3.6604,4675.1,4675.0,0.7613]
[1757809683885,3.6817823,4675.1,4675.0,0.7613]
[1757809688902,3.6817823,4675.1,4675.0,0.294]
[1757809689081,3.6817823,4675.1,4675.0,0.001]
[1757809689686,3.6817823,4675.1,4675.0,0.294]
[1757809689883,3.6817823,4675.1,4675.0,0.7613]
[1757809691487,0.1297823,4675.1,4675.0,0.7613]
[1757809691669,3.6807823,4675.1,4675.0,1.1952]
[1757809692350,3.6594,4675.1,4675.0,1.1952]
[1757809692976,3.6594,4675.1,4675.0,0.7613]
[1757809693485,0.1084,4675.1,4675.0,0.7613]
[1757809693646,3.6594,4675.1,4675.0,0.7613]
[1757809696481,3.6594,4675.1,4675.0,0.294]
[1757809700692,0.1084,4675.1,4675.0,0.294]
[1757809700896,3.6594,4675.1,4675.0,0.294]
[1757809702064,3.6594,4675.1,4675.0,0.001]
[1757809704468,3.6594,4675.1,4675.0,0.2862]
[1757809704801,3.6594,4675.1,4675.0,0.7713]
[1757809709405,0.1084,4675.1,4675.0,0.7713]
[1757809709607,0.002,4675.1,4675.0,3.25345026]
[1757809709808,0.002,4675.1,4675.0,3.34423743]
[1757809710302,3.553,4675.1,4675.0,3.34423743]
[1757809710809,0.002,4675.1,4675.0,3.34423743]
[1757809712708,3.53360985,4675.3,4675.2,2.13894592]
[1757809712876,3.53360985,4675.3,4675.2,2.42414592]
[1757809713076,3.53360985,4675.3,4675.2,3.40905957]
[1757809713306,0.1084,4675.5,4675.2,3.40905957]
[1757809713521,3.6594,4675.5,4675.3,2.62399901]
[1757809714675,3.6594,4675.5,4675.4,0.2852]
[1757809714872,3.6594,4675.5,4675.4,0.7703]
[1757809715988,0.1084,4675.5,4675.4,0.7703]
[1757809716309,0.1084,4675.5,4675.4,0.2852]
[1757809716614,0.1084,4675.5,4675.2,2.63875436]
[1757809716786,0.1084,4675.5,4675.2,3.12385436]
[1757809717488,0.0213823,4675.4,4675.2,0.98491365]
[1757809717682,0.0213823,4675.4,4675.2,0.4851]
[1757809718525,0.0213823,4675.4,4675.2,2.62404368]
[1757809719024,0.0213823,4675.4,4675.2,0.4851]
[1757809719522,0.0213823,4675.4,4675.0,2.14001284]
[1757809719702,0.4856823,4675.4,4675.1,0.48706459]
[1757809720828,0.4643,4675.3,4675.1,0.48706459]
[1757809721017,0.0213823,4675.2,4675.1,0.48706459]
[1757809721215,0.0213823,4675.2,4675.0,0.4861]
[1757809721216,0.7937823,4675.2,4675.0,0.001]
[1757809721397,0.4643,4675.1,4675.0,2.14003743]
[1757809721595,0.0213823,4675.2,4675.0,2.14003743]
[1757809724225,0.0213823,4675.2,4675.0,2.1400373]
[1757809725237,0.0213823,4675.2,4675.1,0.64182449]
[1757809725723,0.0213823,4675.2,4675.1,2.78081616]
[1757809725928,0.0213823,4675.2,4675.1,3.06963778]
[1757809726093,0.0213823,4675.4,4675.1,3.06963778]
[1757809726298,0.4679823,4675.4,4675.1,3.06963778]
[1757809726630,0.4679823,4675.4,4675.1,2.42781329]
[1757809726818,0.4466,4675.3,4675.2,0.64182449]
[1757809727017,0.7512,4675.3,4675.2,0.64182449]
[1757809727925,1.2218,4675.3,4675.2,0.64182449]
[1757809730303,0.7512,4675.3,4675.2,0.64182449]
[1757809736451,1.93358005,4675.3,4675.2,0.64182449]
[1757809736736,1.93358005,4675.3,4675.0,0.001]
[1757809736938,3.5713823,4675.2,4675.0,0.001]
[1757809737138,2.13899167,4675.1,4675.0,0.001]
[1757809737358,2.46417397,4675.1,4675.0,0.001]
[1757809737507,2.11003062,4675.1,4675.0,0.001]
[1757809738414,4.24902229,4675.1,4675.0,0.001]
[1757809739315,2.11003062,4675.1,4675.0,0.001]
[1757809740013,1.63293062,4675.1,4675.0,0.001]
[1757809740213,0.7932823,4675.1,4675.0,0.001]
[1757809743145,4.3432823,4675.1,4675.0,0.001]
[1757809745538,0.7932823,4675.1,4675.0,0.001]
[1757809745739,4.3432823,4675.1,4675.0,0.001]
[1757809751873,0.7932823,4675.1,4675.0,0.001]
[1757809752177,4.3432823,4675.1,4675.0,0.001]
[1757809754040,0.7932823,4675.1,4675.0,0.001]
[1757809754243,4.3432823,4675.1,4675.0,0.001]
[1757809757156,6.48227397,4675.1,4675.0,0.001]
[1757809757357,6.46089167,4675.1,4675.0,0.001]
[1757809760278,6.92629167,4675.1,4675.0,0.001]
[1757809761683,7.99731127,4675.1,4675.0,0.001]
[1757809761882,8.11739806,4675.1,4675.0,0.001]
[1757809762854,15.13739806,4675.1,4675.0,0.001]
[1757809763055,15.33753594,4675.1,4675.0,0.001]
[1757809763362,16.70614496,4675.1,4675.0,0.001]
[1757809764671,16.70605898,4675.1,4675.0,0.001]
[1757809767282,16.50600708,4675.1,4675.0,0.001]
[1757809768460,12.95600708,4675.1,4675.0,0.001]
[1757809768657,16.50600708,4675.1,4675.0,0.001]
[1757809776182,16.50584711,4675.1,4675.0,0.001]
[1757809780682,19.50584711,4675.1,4675.0,0.001]
[1757809781585,19.70576339,4675.1,4675.0,0.001]
[1757809783412,21.95676339,4675.1,4675.0,0.001]
[1757809783613,19.70576339,4675.1,4675.0,0.001]
[1757809788324,20.16678178,4675.1,4675.0,0.001]
[1757809791011,19.70138178,4675.1,4675.0,0.001]
[1757809793129,19.70038178,4675.1,4675.0,0.001]
[1757809798416,8.95749011,4675.1,4675.0,0.7962]
[1757809798611,12.82791849,4675.1,4675.0,0.7962]
[1757809798850,12.82791849,4675.1,4675.0,1.2301]
[1757809800415,7.13992682,4675.1,4675.0,1.2301]
[1757809800660,7.02,4675.1,4675.0,1.2301]
[1757809800862,10.569,4675.1,4675.0,1.2301]
[1757809801244,7.02,4675.1,4675.0,1.2301]
[1757809801553,10.569,4675.1,4675.0,1.2301]
[1757809802138,10.569,4675.1,4675.0,0.7962]
[1757809802650,7.02,4675.1,4675.0,0.7962]
[1757809802982,10.569,4675.1,4675.0,0.7962]
[1757809803128,10.569,4675.1,4675.0,1.2301]
[1757809803129,7.02,4675.1,4675.0,1.2301]
[1757809803482,10.569,4675.1,4675.0,1.2301]
[1757809803638,7.02,4675.1,4675.0,1.2301]
[1757809803822,10.569,4675.1,4675.0,1.56702497]
[1757809804028,7.02,4675.1,4675.0,1.2301]
[1757809804262,10.569,4675.1,4675.0,1.2301]
[1757809804433,7.02,4675.1,4675.0,1.2301]
[1757809804634,10.569,4675.1,4675.0,1.2301]
[1757809805267,3.549,4675.1,4675.0,1.2301]
[1757809805468,0.0213823,4675.1,4675.0,1.56703025]
[1757809805634,3.5703823,4675.1,4675.0,1.2301]
[1757809807641,3.5703823,4675.1,4675.0,3.36913395]
[1757809807642,3.548,4675.1,4675.0,3.36913395]
[1757809808655,0.002,4675.2,4675.0,3.36913395]
[1757809808886,0.002,4675.2,4675.1,3.05839167]
[1757809809051,3.55,4675.2,4675.1,3.05839167]
[1757809809272,0.002,4675.2,4675.1,3.93168653]
[1757809809842,0.002,4675.2,4675.1,4.03808653]
[1757809811356,0.002,4675.2,4675.1,4.14470013]
[1757809812776,0.002,4675.2,4675.1,7.25110013]